[Event "Early-Titled-Tuesday-Blitz-November-28-2023"]
[Site "Chess.com"]
[Date "2023.11.28"]
[Round "1"]
[White "Airquake"]
[Black "DenLaz"]
[Result "0-1"]
[WhiteElo "2521"]
[BlackElo "3059"]
[TimeControl "180+1"]
[EndTime "8:02:50 PST"]
[Termination "DenLaz won by resignation"]

1. g3 {[%clk 0:02:57.9]} 1... d5 {[%clk 0:02:57.9]} 2. Bg2 {[%clk 0:02:58.8]}
2... e5 {[%clk 0:02:56.2]} 3. d3 {[%clk 0:02:58.6]} 3... Nf6 {[%clk 0:02:56]} 4.
Nf3 {[%clk 0:02:58.9]} 4... Bd6 {[%clk 0:02:55.9]} 5. O-O {[%clk 0:02:59.5]}
5... O-O {[%clk 0:02:56.5]} 6. c4 {[%clk 0:02:59.5]} 6... c6 {[%clk 0:02:57]} 7.
b3 {[%clk 0:02:57.5]} 7... Re8 {[%clk 0:02:56.2]} 8. Bb2 {[%clk 0:02:58]} 8...
Nbd7 {[%clk 0:02:55.1]} 9. cxd5 {[%clk 0:02:57.1]} 9... cxd5 {[%clk 0:02:54.2]}
10. Nc3 {[%clk 0:02:58]} 10... a6 {[%clk 0:02:52.6]} 11. Rc1 {[%clk 0:02:57.9]}
11... d4 {[%clk 0:02:51.7]} 12. Ne4 {[%clk 0:02:56.2]} 12... Nxe4 {[%clk
0:02:51.4]} 13. dxe4 {[%clk 0:02:57.1]} 13... Nf6 {[%clk 0:02:52]} 14. Nd2
{[%clk 0:02:56.8]} 14... b5 {[%clk 0:02:50.3]} 15. Qe1 {[%clk 0:02:43.2]} 15...
Bb7 {[%clk 0:02:39.9]} 16. e3 {[%clk 0:02:42.8]} 16... Bb4 {[%clk 0:02:27.2]}
17. a3 {[%clk 0:01:57.5]} 17... dxe3 {[%clk 0:02:22.4]} 0-1

[Event "Early-Titled-Tuesday-Blitz-November-28-2023"]
[Site "Chess.com"]
[Date "2023.11.28"]
[Round "1"]
[White "Rsnr"]
[Black "Bilan_Danila"]
[Result "1-0"]
[WhiteElo "2941"]
[BlackElo "2502"]
[TimeControl "180+1"]
[EndTime "8:02:50 PST"]
[Termination "Rsnr won by resignation"]

1. d4 {[%clk 0:02:59.4]} 1... d5 {[%clk 0:02:53.6]} 2. c4 {[%clk 0:03:00]} 2...
e6 {[%clk 0:02:53.4]} 3. Nc3 {[%clk 0:02:59.4]} 3... c6 {[%clk 0:02:53.9]} 4. e4
{[%clk 0:02:59.1]} 4... Bb4 {[%clk 0:02:53.9]} 5. e5 {[%clk 0:02:53.2]} 5... c5
{[%clk 0:02:47.3]} 6. Nf3 {[%clk 0:02:44.6]} 6... Nc6 {[%clk 0:02:44.9]} 7. a3
{[%clk 0:02:38.4]} 7... Ba5 {[%clk 0:02:43.3]} 8. cxd5 {[%clk 0:02:14]} 8...
exd5 {[%clk 0:02:42.8]} 9. Bg5 {[%clk 0:02:14]} 9... Nge7 {[%clk 0:02:40.3]} 10.
Bb5 {[%clk 0:01:39.3]} 10... O-O {[%clk 0:02:05.2]} 1-0

[Event "Early-Titled-Tuesday-Blitz-November-28-2023"]
[Site "Chess.com"]
[Date "2023.11.28"]
[Round "1"]
[White "alexrustemov"]
[Black "Mistango"]
[Result "1-0"]
[WhiteElo "2860"]
[BlackElo "2480"]
[TimeControl "180+1"]
[EndTime "8:03:14 PST"]
[Termination "alexrustemov won by resignation"]

1. d4 {[%clk 0:03:00.9]} 1... Nf6 {[%clk 0:02:59.8]} 2. c4 {[%clk 0:03:01.5]}
2... g6 {[%clk 0:03:00.2]} 3. Nf3 {[%clk 0:03:02]} 3... Bg7 {[%clk 0:03:00.5]}
4. g3 {[%clk 0:03:02.8]} 4... O-O {[%clk 0:03:00.9]} 5. Bg2 {[%clk 0:03:03.5]}
5... d6 {[%clk 0:03:01.4]} 6. Nc3 {[%clk 0:03:03.9]} 6... Nbd7 {[%clk
0:03:00.1]} 7. d5 {[%clk 0:03:04.2]} 7... Nc5 {[%clk 0:02:53.3]} 8. Be3 {[%clk
0:03:03.8]} 8... Nfe4 {[%clk 0:02:49.4]} 9. Nxe4 {[%clk 0:03:02]} 9... Nxe4
{[%clk 0:02:50.3]} 10. Bd4 {[%clk 0:03:02.6]} 10... Bxd4 {[%clk 0:02:26.1]} 11.
Nxd4 {[%clk 0:03:01.6]} 11... Nf6 {[%clk 0:02:22.4]} 12. b4 {[%clk 0:02:55.2]}
12... a5 {[%clk 0:02:21.5]} 13. a3 {[%clk 0:02:53.3]} 13... axb4 {[%clk
0:02:20]} 14. axb4 {[%clk 0:02:53.2]} 14... Rxa1 {[%clk 0:02:20.5]} 15. Qxa1
{[%clk 0:02:53.8]} 15... Bd7 {[%clk 0:02:14.1]} 16. O-O {[%clk 0:02:53]} 16...
Qa8 {[%clk 0:02:07.5]} 17. c5 {[%clk 0:02:51.2]} 17... b6 {[%clk 0:01:57.5]} 18.
c6 {[%clk 0:02:47.8]} 18... Bf5 {[%clk 0:01:52.9]} 19. Nb5 {[%clk 0:02:43.7]}
19... Qxa1 {[%clk 0:01:47.2]} 20. Rxa1 {[%clk 0:02:42.9]} 20... Rc8 {[%clk
0:01:47.8]} 21. Ra7 {[%clk 0:02:41.3]} 21... Ne8 {[%clk 0:01:48.2]} 22. e4
{[%clk 0:02:41]} 22... Bg4 {[%clk 0:01:34.1]} 23. f3 {[%clk 0:02:40.7]} 23... h5
{[%clk 0:01:34.5]} 24. fxg4 {[%clk 0:02:35.4]} 24... hxg4 {[%clk 0:01:35.4]} 25.
h3 {[%clk 0:02:32.5]} 25... f5 {[%clk 0:01:30.1]} 26. exf5 {[%clk 0:02:30.1]}
26... gxf5 {[%clk 0:01:31]} 27. hxg4 {[%clk 0:02:30.2]} 27... fxg4 {[%clk
0:01:31.9]} 28. Be4 {[%clk 0:02:30]} 1-0

[Event "Early-Titled-Tuesday-Blitz-November-28-2023"]
[Site "Chess.com"]
[Date "2023.11.28"]
[Round "1"]
[White "aa175"]
[Black "margarita_2703"]
[Result "0-1"]
[WhiteElo "2596"]
[BlackElo "2314"]
[TimeControl "180+1"]
[EndTime "8:03:30 PST"]
[Termination "margarita_2703 won by resignation"]

1. d3 {[%clk 0:03:00.9]} 1... c5 {[%clk 0:02:58.5]} 2. g3 {[%clk 0:02:54.3]}
2... g6 {[%clk 0:02:57.9]} 3. Bg2 {[%clk 0:02:55.2]} 3... Bg7 {[%clk 0:02:58.6]}
4. Nf3 {[%clk 0:02:49]} 4... d5 {[%clk 0:02:57.7]} 5. O-O {[%clk 0:02:49.9]}
5... Nf6 {[%clk 0:02:57.6]} 6. Nbd2 {[%clk 0:02:50.8]} 6... O-O {[%clk
0:02:57.6]} 7. c3 {[%clk 0:02:50.7]} 7... Nc6 {[%clk 0:02:57.2]} 8. Qc2 {[%clk
0:02:50.7]} 8... e5 {[%clk 0:02:57.2]} 9. Re1 {[%clk 0:02:51.6]} 9... Be6 {[%clk
0:02:55.8]} 10. e4 {[%clk 0:02:52.5]} 10... d4 {[%clk 0:02:55.2]} 11. a3 {[%clk
0:02:44.6]} 11... Rc8 {[%clk 0:02:51.8]} 12. c4 {[%clk 0:02:45.5]} 12... a6
{[%clk 0:02:50.3]} 13. Rb1 {[%clk 0:02:44.8]} 13... Nd7 {[%clk 0:02:47.1]} 14.
b4 {[%clk 0:02:44.5]} 14... b6 {[%clk 0:02:47.5]} 15. b5 {[%clk 0:02:31.1]}
15... axb5 {[%clk 0:02:46.3]} 16. Rxb5 {[%clk 0:02:32]} 16... Na7 {[%clk
0:02:46]} 17. a4 {[%clk 0:02:28.1]} 17... Nxb5 {[%clk 0:02:45.5]} 18. axb5
{[%clk 0:02:29]} 18... Ra8 {[%clk 0:02:45.4]} 19. Bb2 {[%clk 0:02:28]} 19... Bg4
{[%clk 0:02:39.9]} 20. h3 {[%clk 0:02:26.9]} 20... Bxf3 {[%clk 0:02:40.2]} 21.
Bxf3 {[%clk 0:02:27.8]} 21... Nf6 {[%clk 0:02:39]} 22. Bg2 {[%clk 0:02:27.7]}
22... Bh6 {[%clk 0:02:39.2]} 23. Nf3 {[%clk 0:02:27.3]} 23... Nd7 {[%clk
0:02:36.6]} 24. Kh2 {[%clk 0:02:26.7]} 24... Qe7 {[%clk 0:02:31.8]} 25. Bc1
{[%clk 0:02:24.2]} 25... Bxc1 {[%clk 0:02:31]} 26. Qxc1 {[%clk 0:02:25.1]} 26...
Ra2 {[%clk 0:02:30.4]} 27. Qh6 {[%clk 0:02:24.4]} 27... Qf6 {[%clk 0:02:28.1]}
28. Rf1 {[%clk 0:02:22.6]} 28... Qg7 {[%clk 0:02:27.9]} 29. Qg5 {[%clk
0:02:17.4]} 29... f6 {[%clk 0:02:27.2]} 30. Qg4 {[%clk 0:02:17]} 30... Qf7
{[%clk 0:02:24]} 31. h4 {[%clk 0:02:13.7]} 31... h5 {[%clk 0:02:23.8]} 32. Qh3
{[%clk 0:02:13.7]} 32... Ra3 {[%clk 0:02:23.3]} 33. Rd1 {[%clk 0:02:12.6]} 33...
Re8 {[%clk 0:02:22.2]} 34. g4 {[%clk 0:02:10.4]} 34... Qe6 {[%clk 0:02:22.4]}
35. gxh5 {[%clk 0:02:08.2]} 35... gxh5 {[%clk 0:02:10]} 36. Qxe6+ {[%clk
0:02:04.5]} 36... Rxe6 {[%clk 0:02:10.9]} 37. Bh3 {[%clk 0:02:05.3]} 37... Re7
{[%clk 0:02:10.6]} 38. Bf5 {[%clk 0:02:04.9]} 38... Nf8 {[%clk 0:02:08.6]} 39.
Rg1+ {[%clk 0:02:04.9]} 39... Rg7 {[%clk 0:02:08.8]} 40. Rg2 {[%clk 0:02:05.8]}
40... Rxg2+ {[%clk 0:02:08]} 0-1

[Event "Early-Titled-Tuesday-Blitz-November-28-2023"]
[Site "Chess.com"]
[Date "2023.11.28"]
[Round "1"]
[White "rikchessmx"]
[Black "Logman74"]
[Result "0-1"]
[WhiteElo "2284"]
[BlackElo "2610"]
[TimeControl "180+1"]
[EndTime "8:03:33 PST"]
[Termination "Logman74 won by resignation"]

1. e4 {[%clk 0:02:44.4]} 1... e5 {[%clk 0:02:56.7]} 2. Nf3 {[%clk 0:02:44]} 2...
Nc6 {[%clk 0:02:56.7]} 3. Bb5 {[%clk 0:02:44.6]} 3... a6 {[%clk 0:02:56.2]} 4.
Ba4 {[%clk 0:02:44.7]} 4... Nf6 {[%clk 0:02:56.3]} 5. O-O {[%clk 0:02:45.1]}
5... Be7 {[%clk 0:02:56.3]} 6. Re1 {[%clk 0:02:44.7]} 6... b5 {[%clk 0:02:56.5]}
7. Bb3 {[%clk 0:02:44.4]} 7... O-O {[%clk 0:02:57.1]} 8. d3 {[%clk 0:02:44.8]}
8... h6 {[%clk 0:02:55]} 9. a4 {[%clk 0:02:44.1]} 9... b4 {[%clk 0:02:53.5]} 10.
Nbd2 {[%clk 0:02:34.7]} 10... Bc5 {[%clk 0:02:48.1]} 11. Nc4 {[%clk 0:02:35.6]}
11... d6 {[%clk 0:02:47.6]} 12. c3 {[%clk 0:02:34.6]} 12... Re8 {[%clk
0:02:36.3]} 13. h3 {[%clk 0:02:34.2]} 13... a5 {[%clk 0:02:30.5]} 14. d4 {[%clk
0:02:34]} 14... exd4 {[%clk 0:02:27.3]} 15. cxd4 {[%clk 0:02:34.9]} 15... Ba7
{[%clk 0:02:25.9]} 16. Bc2 {[%clk 0:02:28.4]} 16... Ba6 {[%clk 0:02:04.8]} 17.
b3 {[%clk 0:02:28.3]} 17... d5 {[%clk 0:02:01]} 18. Nce5 {[%clk 0:02:18.9]}
18... Nxe5 {[%clk 0:01:52.5]} 19. Nxe5 {[%clk 0:02:17.4]} 19... Nxe4 {[%clk
0:01:49.9]} 20. Nc6 {[%clk 0:02:17.2]} 20... Qf6 {[%clk 0:01:48.9]} 21. Be3
{[%clk 0:02:13.4]} 21... Qxc6 {[%clk 0:01:47.5]} 22. Bxe4 {[%clk 0:02:07.8]}
22... Rxe4 {[%clk 0:01:44.8]} 23. Rc1 {[%clk 0:02:07.4]} 23... Qd7 {[%clk
0:01:41.8]} 24. Qc2 {[%clk 0:02:06]} 24... Rae8 {[%clk 0:01:40.3]} 25. Red1
{[%clk 0:02:02.5]} 25... Bb6 {[%clk 0:01:35.5]} 0-1

[Event "Early-Titled-Tuesday-Blitz-November-28-2023"]
[Site "Chess.com"]
[Date "2023.11.28"]
[Round "1"]
[White "averageFM"]
[Black "Goi_Manne"]
[Result "1-0"]
[WhiteElo "2609"]
[BlackElo "2277"]
[TimeControl "180+1"]
[EndTime "8:03:33 PST"]
[Termination "averageFM won by resignation"]

1. e4 {[%clk 0:02:59.3]} 1... c6 {[%clk 0:03:00.3]} 2. d4 {[%clk 0:02:56.8]}
2... d5 {[%clk 0:03:01.2]} 3. exd5 {[%clk 0:02:57]} 3... cxd5 {[%clk 0:03:02.1]}
4. Bd3 {[%clk 0:02:56.3]} 4... Nf6 {[%clk 0:03:02.5]} 5. c3 {[%clk 0:02:55]}
5... Qc7 {[%clk 0:03:02.3]} 6. Ne2 {[%clk 0:02:54.4]} 6... Bg4 {[%clk
0:03:02.1]} 7. O-O {[%clk 0:02:54]} 7... e6 {[%clk 0:03:01.2]} 8. Qe1 {[%clk
0:02:53.4]} 8... Bd6 {[%clk 0:02:57]} 9. f3 {[%clk 0:02:50.2]} 9... Bh5 {[%clk
0:02:57]} 10. Qh4 {[%clk 0:02:49.6]} 10... O-O {[%clk 0:02:53.6]} 11. Nf4 {[%clk
0:02:46.4]} 11... Bxf4 {[%clk 0:02:48.6]} 12. Bxf4 {[%clk 0:02:47.3]} 12... Qb6
{[%clk 0:02:48.9]} 13. b4 {[%clk 0:02:40.5]} 13... Bg6 {[%clk 0:02:45]} 14. Bxg6
{[%clk 0:02:38.3]} 14... hxg6 {[%clk 0:02:45.9]} 15. Bg5 {[%clk 0:02:34.6]}
15... Nbd7 {[%clk 0:02:45.6]} 16. Nd2 {[%clk 0:02:33.6]} 16... Rac8 {[%clk
0:02:43.9]} 17. Rac1 {[%clk 0:02:32.9]} 17... Qa6 {[%clk 0:02:38.6]} 18. Rc2
{[%clk 0:02:18]} 18... Qd3 {[%clk 0:02:37]} 19. Rfc1 {[%clk 0:02:17.5]} 19...
Rc7 {[%clk 0:02:24.8]} 20. Nb3 {[%clk 0:02:16.2]} 20... b6 {[%clk 0:02:17.6]}
21. Qf4 {[%clk 0:02:01.6]} 21... Rfc8 {[%clk 0:02:14.3]} 22. Qd2 {[%clk
0:01:58]} 22... Qxd2 {[%clk 0:02:13]} 23. Nxd2 {[%clk 0:01:57.3]} 23... Nb8
{[%clk 0:01:51.7]} 24. Bf4 {[%clk 0:01:55.2]} 24... Rc6 {[%clk 0:01:51.7]} 25.
b5 {[%clk 0:01:53]} 25... Nh5 {[%clk 0:01:46]} 26. Bxb8 {[%clk 0:01:50.7]} 1-0

[Event "Early-Titled-Tuesday-Blitz-November-28-2023"]
[Site "Chess.com"]
[Date "2023.11.28"]
[Round "1"]
[White "Viacheslav92"]
[Black "Saylormoon"]
[Result "1-0"]
[WhiteElo "2566"]
[BlackElo "2201"]
[TimeControl "180+1"]
[EndTime "8:03:33 PST"]
[Termination "Viacheslav92 won by checkmate"]

1. e4 {[%clk 0:02:59.7]} 1... d6 {[%clk 0:03:00]} 2. d4 {[%clk 0:02:59.1]} 2...
Nf6 {[%clk 0:03:00.7]} 3. Nc3 {[%clk 0:02:59.4]} 3... e5 {[%clk 0:03:01.1]} 4.
Nf3 {[%clk 0:02:58.5]} 4... Nbd7 {[%clk 0:03:01.1]} 5. g4 {[%clk 0:02:58]} 5...
Nxg4 {[%clk 0:03:00.5]} 6. Rg1 {[%clk 0:02:58]} 6... Ngf6 {[%clk 0:03:01.1]} 7.
Bc4 {[%clk 0:02:55.6]} 7... c6 {[%clk 0:03:01.4]} 8. Ng5 {[%clk 0:02:48.9]} 8...
d5 {[%clk 0:02:54.8]} 9. exd5 {[%clk 0:02:46.8]} 9... h6 {[%clk 0:02:54.5]} 10.
Nxf7 {[%clk 0:02:44.5]} 10... Kxf7 {[%clk 0:02:52.6]} 11. dxc6+ {[%clk 0:02:45]}
11... Ke8 {[%clk 0:02:50.1]} 12. cxd7+ {[%clk 0:02:42.5]} 12... Qxd7 {[%clk
0:02:39.2]} 13. Qe2 {[%clk 0:02:38.8]} 13... Qe7 {[%clk 0:02:38.1]} 14. dxe5
{[%clk 0:02:35.6]} 14... Nd7 {[%clk 0:02:37.1]} 15. f4 {[%clk 0:02:29.8]} 15...
Qh4+ {[%clk 0:02:29.4]} 16. Rg3 {[%clk 0:02:20.5]} 16... Be7 {[%clk 0:02:25.7]}
17. Nd5 {[%clk 0:02:15.4]} 17... Bd8 {[%clk 0:02:25]} 18. Be3 {[%clk 0:02:12.5]}
18... g5 {[%clk 0:02:14.6]} 19. O-O-O {[%clk 0:02:02.8]} 19... gxf4 {[%clk
0:02:12.9]} 20. Bxf4 {[%clk 0:02:03.7]} 20... a6 {[%clk 0:02:10.9]} 21. Nf6+
{[%clk 0:02:01.1]} 21... Ke7 {[%clk 0:02:03.6]} 22. Bd2 {[%clk 0:01:58.1]} 22...
a5 {[%clk 0:01:54.1]} 23. Rg7+ {[%clk 0:01:40.8]} 23... Kf8 {[%clk 0:01:51]} 24.
Rf7# {[%clk 0:01:40.5]} 1-0

[Event "Early-Titled-Tuesday-Blitz-November-28-2023"]
[Site "Chess.com"]
[Date "2023.11.28"]
[Round "1"]
[White "anemih"]
[Black "Hikaru"]
[Result "0-1"]
[WhiteElo "2524"]
[BlackElo "3221"]
[TimeControl "180+1"]
[EndTime "8:04:06 PST"]
[Termination "Hikaru won by checkmate"]

1. e4 {[%clk 0:02:59.2]} 1... a6 {[%clk 0:02:54.2]} 2. Nf3 {[%clk 0:02:54.3]}
2... c5 {[%clk 0:02:53.8]} 3. d4 {[%clk 0:02:53.6]} 3... cxd4 {[%clk 0:02:54.2]}
4. Nxd4 {[%clk 0:02:53.9]} 4... e5 {[%clk 0:02:54.8]} 5. Nb3 {[%clk 0:02:53.2]}
5... Nf6 {[%clk 0:02:54.7]} 6. f3 {[%clk 0:02:51.3]} 6... d5 {[%clk 0:02:48.2]}
7. Bg5 {[%clk 0:02:49.5]} 7... d4 {[%clk 0:02:22.9]} 8. c3 {[%clk 0:02:49.4]}
8... Nc6 {[%clk 0:02:23]} 9. Be2 {[%clk 0:02:38.7]} 9... Be6 {[%clk 0:02:19.7]}
10. O-O {[%clk 0:02:36.8]} 10... Qb6 {[%clk 0:02:15.3]} 11. Kh1 {[%clk
0:02:35.2]} 11... Rd8 {[%clk 0:02:15]} 12. Qc2 {[%clk 0:02:27.7]} 12... Be7
{[%clk 0:02:12.2]} 13. Rd1 {[%clk 0:02:26.4]} 13... O-O {[%clk 0:02:12.3]} 14.
N1d2 {[%clk 0:02:23.4]} 14... Ng4 {[%clk 0:02:02.5]} 15. Bxe7 {[%clk 0:01:51.8]}
15... Nf2+ {[%clk 0:01:30.6]} 16. Kg1 {[%clk 0:01:51.8]} 16... Nxe7 {[%clk
0:01:31.3]} 17. Rf1 {[%clk 0:01:21.3]} 17... d3 {[%clk 0:01:29.2]} 18. Qc1
{[%clk 0:01:18]} 18... Nh3+ {[%clk 0:01:29.4]} 19. Kh1 {[%clk 0:01:16.9]} 19...
Qg1+ {[%clk 0:01:30.3]} 20. Rxg1 {[%clk 0:01:17]} 20... Nf2# {[%clk 0:01:31.2]}
0-1

[Event "Early-Titled-Tuesday-Blitz-November-28-2023"]
[Site "Chess.com"]
[Date "2023.11.28"]
[Round "1"]
[White "AjedrezenMadrid"]
[Black "GoltsevDmitry2000"]
[Result "0-1"]
[WhiteElo "2377"]
[BlackElo "2682"]
[TimeControl "180+1"]
[EndTime "8:04:13 PST"]
[Termination "GoltsevDmitry2000 won by resignation"]

1. Nf3 {[%clk 0:02:58]} 1... d5 {[%clk 0:03:00]} 2. g3 {[%clk 0:02:55.8]} 2...
c6 {[%clk 0:03:00.9]} 3. Bg2 {[%clk 0:02:55.3]} 3... Nf6 {[%clk 0:03:01.8]} 4.
b3 {[%clk 0:02:53.4]} 4... g6 {[%clk 0:03:02.7]} 5. c4 {[%clk 0:02:53.2]} 5...
Bg7 {[%clk 0:03:03.6]} 6. Bb2 {[%clk 0:02:53.2]} 6... O-O {[%clk 0:03:03.6]} 7.
O-O {[%clk 0:02:52.7]} 7... dxc4 {[%clk 0:03:03.8]} 8. bxc4 {[%clk 0:02:52.3]}
8... Bg4 {[%clk 0:03:04.7]} 9. d3 {[%clk 0:02:45.8]} 9... Nbd7 {[%clk
0:03:04.8]} 10. h3 {[%clk 0:02:45.1]} 10... Bf5 {[%clk 0:03:01.1]} 11. Nd4
{[%clk 0:02:39.1]} 11... Ne8 {[%clk 0:02:58.1]} 12. Qc1 {[%clk 0:02:38.7]} 12...
Qb6 {[%clk 0:02:57.6]} 13. Nb3 {[%clk 0:02:26.5]} 13... Nc5 {[%clk 0:02:54.4]}
14. Bxg7 {[%clk 0:02:24.5]} 14... Nxg7 {[%clk 0:02:55.3]} 15. N1d2 {[%clk
0:02:10.6]} 15... Nge6 {[%clk 0:02:51]} 16. d4 {[%clk 0:02:08.1]} 16... Nxb3
{[%clk 0:02:41.1]} 17. Nxb3 {[%clk 0:02:07.8]} 17... Nxd4 {[%clk 0:02:41.3]} 18.
Nxd4 {[%clk 0:01:58.8]} 18... Qxd4 {[%clk 0:02:42.2]} 19. Rd1 {[%clk 0:01:59.2]}
19... Qe5 {[%clk 0:02:41.7]} 20. Qg5 {[%clk 0:01:58.3]} 20... Qxe2 {[%clk
0:02:33.5]} 21. Re1 {[%clk 0:01:58.2]} 21... Qxc4 {[%clk 0:02:31.5]} 22. Rxe7
{[%clk 0:01:56.5]} 22... Rfe8 {[%clk 0:02:26.8]} 23. Rxb7 {[%clk 0:01:55.4]}
23... Qc3 {[%clk 0:02:15.4]} 24. Rc1 {[%clk 0:01:53.4]} 24... Re1+ {[%clk
0:02:15.3]} 25. Rxe1 {[%clk 0:01:48.9]} 25... Qxe1+ {[%clk 0:02:16.2]} 26. Kh2
{[%clk 0:01:49.8]} 26... Qxf2 {[%clk 0:02:16.2]} 27. Qf6 {[%clk 0:01:48.8]}
27... Qxa2 {[%clk 0:02:03.7]} 28. Qxc6 {[%clk 0:01:43.6]} 28... Rf8 {[%clk
0:01:58]} 29. Qd6 {[%clk 0:01:32.2]} 29... Be4 {[%clk 0:01:53]} 0-1

[Event "Early-Titled-Tuesday-Blitz-November-28-2023"]
[Site "Chess.com"]
[Date "2023.11.28"]
[Round "1"]
[White "Gentlejimmy7"]
[Black "Zainullina_Nataliya"]
[Result "1-0"]
[WhiteElo "2549"]
[BlackElo "2147"]
[TimeControl "180+1"]
[EndTime "8:04:17 PST"]
[Termination "Gentlejimmy7 won by resignation"]

1. c4 {[%clk 0:03:00]} 1... e5 {[%clk 0:02:59.4]} 2. Nf3 {[%clk 0:02:58.5]} 2...
Nc6 {[%clk 0:02:59.1]} 3. d3 {[%clk 0:02:57]} 3... f5 {[%clk 0:02:57]} 4. Nc3
{[%clk 0:02:57]} 4... Nf6 {[%clk 0:02:56.5]} 5. g3 {[%clk 0:02:57.3]} 5... Be7
{[%clk 0:02:52]} 6. Bg2 {[%clk 0:02:57.8]} 6... O-O {[%clk 0:02:50.8]} 7. O-O
{[%clk 0:02:58.4]} 7... d6 {[%clk 0:02:50.8]} 8. Rb1 {[%clk 0:02:57.7]} 8... Be6
{[%clk 0:02:48.7]} 9. b4 {[%clk 0:02:57.5]} 9... Qd7 {[%clk 0:02:46.7]} 10. b5
{[%clk 0:02:52.8]} 10... Nd8 {[%clk 0:02:46]} 11. Ng5 {[%clk 0:02:53]} 11... Rb8
{[%clk 0:02:37.5]} 12. Nxe6 {[%clk 0:02:52.2]} 12... Nxe6 {[%clk 0:02:34.6]} 13.
Nd5 {[%clk 0:02:52.3]} 13... Bd8 {[%clk 0:02:29.2]} 14. a4 {[%clk 0:02:49.8]}
14... Kh8 {[%clk 0:02:05.3]} 15. Be3 {[%clk 0:02:49.2]} 15... Nc5 {[%clk
0:01:57.5]} 16. Qc2 {[%clk 0:02:29]} 16... Nxd5 {[%clk 0:01:33.4]} 17. Bxd5
{[%clk 0:02:28.3]} 17... Bf6 {[%clk 0:01:31.1]} 18. Rfd1 {[%clk 0:02:26.9]}
18... c6 {[%clk 0:01:22.8]} 19. bxc6 {[%clk 0:02:24.7]} 19... bxc6 {[%clk
0:01:21.2]} 20. Rxb8 {[%clk 0:02:23.6]} 20... Rxb8 {[%clk 0:01:20.8]} 21. Bg2
{[%clk 0:02:18.8]} 21... Ne6 {[%clk 0:01:10.4]} 22. Rb1 {[%clk 0:02:17.5]} 22...
Rxb1+ {[%clk 0:01:06.8]} 23. Qxb1 {[%clk 0:02:18.4]} 23... h6 {[%clk 0:01:06]}
24. Qb8+ {[%clk 0:02:16.9]} 24... Kh7 {[%clk 0:01:05.5]} 25. Qxa7 {[%clk
0:02:17.5]} 25... Qxa7 {[%clk 0:01:03]} 26. Bxa7 {[%clk 0:02:18.4]} 26... c5
{[%clk 0:01:02.2]} 27. Bb8 {[%clk 0:02:17.9]} 27... Be7 {[%clk 0:01:02]} 28. a5
{[%clk 0:02:14.7]} 1-0

[Event "Early-Titled-Tuesday-Blitz-November-28-2023"]
[Site "Chess.com"]
[Date "2023.11.28"]
[Round "1"]
[White "bazar-wokzal"]
[Black "RamonManon0g"]
[Result "1-0"]
[WhiteElo "2637"]
[BlackElo "2331"]
[TimeControl "180+1"]
[EndTime "8:04:28 PST"]
[Termination "bazar-wokzal won by resignation"]

1. e4 {[%clk 0:02:58.6]} 1... c5 {[%clk 0:02:53.6]} 2. c3 {[%clk 0:02:58.3]}
2... Nf6 {[%clk 0:02:48.7]} 3. e5 {[%clk 0:02:58.6]} 3... Nd5 {[%clk 0:02:48.2]}
4. d4 {[%clk 0:02:59.3]} 4... cxd4 {[%clk 0:02:48.6]} 5. cxd4 {[%clk 0:03:00]}
5... Nc6 {[%clk 0:02:46.8]} 6. Nc3 {[%clk 0:02:59.6]} 6... Nxc3 {[%clk
0:02:46.2]} 7. bxc3 {[%clk 0:03:00.5]} 7... e6 {[%clk 0:02:45.1]} 8. f4 {[%clk
0:03:00.3]} 8... d6 {[%clk 0:02:44.5]} 9. Nf3 {[%clk 0:03:00]} 9... dxe5 {[%clk
0:02:42.2]} 10. fxe5 {[%clk 0:02:59.7]} 10... Be7 {[%clk 0:02:42.2]} 11. Bd3
{[%clk 0:02:59.4]} 11... Qa5 {[%clk 0:02:40.9]} 12. Bd2 {[%clk 0:02:59]} 12...
b6 {[%clk 0:02:39.6]} 13. O-O {[%clk 0:02:54.6]} 13... Ba6 {[%clk 0:02:36]} 14.
Be4 {[%clk 0:02:44.4]} 14... Rc8 {[%clk 0:02:33.8]} 15. Rf2 {[%clk 0:02:42.6]}
15... O-O {[%clk 0:02:30.8]} 16. Rc1 {[%clk 0:01:56.6]} 16... Qxa2 {[%clk
0:02:22.6]} 17. Ra1 {[%clk 0:01:39.3]} 17... Qc4 {[%clk 0:02:22.2]} 18. Ra4
{[%clk 0:01:37.3]} 18... Qb5 {[%clk 0:02:20.3]} 19. c4 {[%clk 0:01:37.2]} 19...
Qb2 {[%clk 0:02:12.6]} 20. Be1 {[%clk 0:01:26.4]} 20... Qxf2+ {[%clk 0:01:58.5]}
21. Bxf2 {[%clk 0:01:26]} 21... Na5 {[%clk 0:01:59.4]} 22. c5 {[%clk 0:01:14.6]}
22... Rfd8 {[%clk 0:01:56.1]} 23. Qb1 {[%clk 0:01:09.9]} 23... h6 {[%clk
0:01:52.1]} 24. Be3 {[%clk 0:01:03.2]} 24... Nc4 {[%clk 0:01:48.1]} 25. Bxh6
{[%clk 0:00:59.3]} 25... Nd2 {[%clk 0:01:46.6]} 26. Bxd2 {[%clk 0:00:57.8]} 1-0

[Event "Early-Titled-Tuesday-Blitz-November-28-2023"]
[Site "Chess.com"]
[Date "2023.11.28"]
[Round "1"]
[White "Actuary44"]
[Black "Flawless_Fighter"]
[Result "0-1"]
[WhiteElo "2454"]
[BlackElo "2811"]
[TimeControl "180+1"]
[EndTime "8:04:49 PST"]
[Termination "Flawless_Fighter won by resignation"]

1. e4 {[%clk 0:03:00.9]} 1... c6 {[%clk 0:02:58.8]} 2. d4 {[%clk 0:03:01.2]}
2... d5 {[%clk 0:02:59.7]} 3. Nc3 {[%clk 0:03:01.7]} 3... dxe4 {[%clk
0:02:59.3]} 4. Nxe4 {[%clk 0:03:02.6]} 4... Nf6 {[%clk 0:02:59.8]} 5. Ng3 {[%clk
0:03:03]} 5... h5 {[%clk 0:02:59.3]} 6. h4 {[%clk 0:03:02.5]} 6... c5 {[%clk
0:02:48.2]} 7. Be3 {[%clk 0:02:37.8]} 7... Ng4 {[%clk 0:02:35.4]} 8. d5 {[%clk
0:02:26.3]} 8... Nxe3 {[%clk 0:02:32.3]} 9. fxe3 {[%clk 0:02:27.2]} 9... Bg4
{[%clk 0:02:15.2]} 10. Bb5+ {[%clk 0:02:17.7]} 10... Nd7 {[%clk 0:02:14.5]} 11.
Qd2 {[%clk 0:02:13.4]} 11... g6 {[%clk 0:02:10.9]} 12. Nf3 {[%clk 0:02:12.2]}
12... Bg7 {[%clk 0:02:08.7]} 13. O-O-O {[%clk 0:02:10.2]} 13... O-O {[%clk
0:02:01.5]} 14. Be2 {[%clk 0:02:02.1]} 14... b5 {[%clk 0:01:52.3]} 15. Ng5
{[%clk 0:02:00.9]} 15... Bxe2 {[%clk 0:01:47.1]} 16. Nxe2 {[%clk 0:02:00]} 16...
Ne5 {[%clk 0:01:39.1]} 17. c3 {[%clk 0:01:45.7]} 17... b4 {[%clk 0:01:34.7]} 18.
Nf4 {[%clk 0:01:36.8]} 18... Rb8 {[%clk 0:01:26.7]} 19. Qe2 {[%clk 0:01:00.3]}
19... bxc3 {[%clk 0:01:25.2]} 20. bxc3 {[%clk 0:01:01.2]} 20... Qa5 {[%clk
0:01:23.8]} 21. Ne4 {[%clk 0:00:57.7]} 21... Qa3+ {[%clk 0:01:15]} 0-1